Cogmind - Beta 13 @@@ ROGUE MODE // 2024.04.16 @ 21:27:25 Player: Bace Troncons Result: Destroyed by Autobeam Turret with Autobeam Performance ------------- Evolutions (0) 0 Regions Visited (2) 400 Robots Destroyed (29) 145 Value Destroyed (761) 761 Prototype IDs (5) 100 Alien Tech Used (0) 0 Bonus (0) 0 TOTAL SCORE: 1406 Bonus ------- None Cogmind --------- Core Integrity 0/250 Matter 248/300 Energy 178/180 System Corruption 0% Temperature Cool (13) Movement Treading (240) Ox1 Location -10/Subcaves Parts ------- > --- POWER (1) -------- Meta Core > --- PROPULSION (2+1) - Light Treads > --- UTILITY (2+1) ---- Medium Storage Unit Sensor Array (+) Transport Network Coupler > --- WEAPON (2+1) ----- Light Assault Rifle Grenade Launcher > --- INVENTORY (10) --- Ion Engine Visual Processing Unit Subdweller Optics Signal Interpreter Transport Network Coupler ECM Suite Makeshift System Shield Datajack Multitool Peak State ------------ > --- POWER ------------ Meta Core > --- PROPULSION ------- Light Treads > --- UTILITY ---------- Medium Storage Unit Sensor Array Transport Network Coupler > --- WEAPON ----------- Light Assault Rifle Grenade Launcher > --- INVENTORY -------- Ion Engine Light Nuclear Core Visual Processing Unit Signal Interpreter Transport Network Coupler ECM Suite Makeshift System Shield Datajack Multitool [Rating: 20] Favorites ----------- Power Light Nuclear Core Engine Light Ion Engine Power Core Light Nuclear Core Propulsion Light Treads Treads Light Treads Utility Medium Storage Unit Device Sensor Array Storage Medium Storage Unit Processor Transport Network Coupler Weapon Light Assault Rifle Ballistic Gun Light Assault Rifle Launcher Grenade Launcher Special Melee Weapon Datajack Build | -11 -10 -10 ------- Run | Yrd Mat Sub Slots Evolved . | . . . Power . | . . . Propulsion . | . . . Utility . | . . . Weapon . | . . . Parts Attached 22 | 6 12 4 Power 5 | 1 3 1 Engine 2 | 1 1 . Core 3 | . 2 1 Reactor . | . . . Propulsion 4 | 2 1 1 Treads 4 | 2 1 1 Leg . | . . . Wheel . | . . . Hover . | . . . Flight . | . . . Utility 5 | 1 3 1 Device 2 | . 1 1 Storage 2 | 1 1 . Processor 1 | . 1 . Hackware . | . . . Protection . | . . . Artifact . | . . . Weapon 8 | 2 5 1 Energy Gun . | . . . Energy Cannon . | . . . Ballistic Gun 3 | 2 1 . Ballistic Cannon . | . . . Launcher 4 | . 3 1 Special Weapon . | . . . Impact Weapon . | . . . Slashing Weapon . | . . . Piercing Weapon . | . . . Special Melee Weapon 1 | . 1 . Unidentified Prototypes 1 | . . 1 Parts Lost 4 | . 1 3 Power 1 | . 1 . Propulsion 2 | . . 2 Utility . | . . . Weapon 1 | . . 1 Highest Loss Streak 2 | . 1 2 To Critical Strikes . | . . . Average Slot Usage (%) 97 | . 99 94 Core 13 | . 13 13 Treads 26 | . 27 23 Device 4 | . 5 1 Storage 13 | . 14 13 Processor 10 | . 8 13 Ballistic Gun 14 | . 14 13 Launcher 13 | . 13 13 Naked Turns . | . . . Heaviest Build 21 | 10 20 21 Greatest Support 40 | 40 40 40 Greatest Overweight (x) 1 | . . 1 Average Overweight (x) . | . . . Largest Inventory Capacity 10 | 8 10 10 Average Capacity 9 | 7 9 10 Most Carried 10 | 6 10 10 Average Carried 9 | 3 8 9 Final Capacity 10 | 8 10 10 Final Carried 10 | 4 10 9 Class Distribution -------------------- 100% | Mutant Dominant Class ---------------- Mutant | -10/Materials Mutant | -10/Subcaves Resources | -11 -10 -10 ----------- Run | Yrd Mat Sub Matter Collected 792 | 224 350 218 Remotely . | . . . Salvage Created 551 | . 418 133 Parts 48 | . 27 21 Haulers Intercepted 2 | . 2 . Recyclers Shooed 2 | . 2 . Parts Field Recycled . | . . . Retrieved Matter . | . . . Parts Self-Destructed 8 | . . 8 Prevented . | . . . Kills | -11 -10 -10 ------- Run | Yrd Mat Sub Combat Hostiles Destroyed 22 | . 12 10 Guns 1 | . 1 . AOE 21 | . 11 10 Classes Destroyed 7 | . 6 1 Worker 1 | . 1 . Hauler 2 | . 2 . Operator 1 | . 1 . Watcher 3 | . 3 . Swarmer 6 | . 3 3 Grunt 9 | . 9 . Subdweller 7 | . . 7 Best Kill Streak 3 | . 3 3 Combat Bots Only 3 | . 3 3 Max Kills in Single Turn 2 | . 2 2 Gunslinging . | . . . Exploded 2 | . 2 2 Melee . | . . . Uniques/NPCs Destroyed . | . . . Combat | -11 -10 -10 -------- Run | Yrd Mat Sub Hostile Shots Fired 100 | . 32 68 Missed 34 | . 9 25 Damage Taken 889 | . 307 582 Core 252 | . 80 172 Absorbed by Shields . | . . . Regen/Repaired (Parts) 31 | . 31 . Core Remaining (%) 100 | 100 . . Volleys Fired 50 | . 30 20 Largest 2 | . 2 1 Hottest 40 | . 40 30 Shots Fired 57 | . 37 20 Gun 14 | . 14 . Cannon . | . . . Launcher 43 | . 23 20 Special . | . . . Kinetic 14 | . 14 . Thermal . | . . . Explosive 43 | . 23 20 Electromagnetic . | . . . Robot Hit Streak 8 | . 8 5 Robot Miss Streak 2 | . 2 1 Penetration Max . | . . . Secondary Targets . | . . . Shots Hit Robots 38 | . 25 13 Core Hits 51 | . 35 16 Critical Kills . | . . . Critical Parts Destroyed . | . . . Critical Strikes . | . . . Melee Attacks 4 | . 4 . Impact . | . . . Slashing . | . . . Piercing . | . . . Sneak Attacks 4 | . 4 . Combat Hostiles . | . . . Follow-up Attacks . | . . . Damage Inflicted 2170 | . 1078 1092 Guns 69 | . 69 . Cannons . | . . . Explosions 2101 | . 1009 1092 Melee . | . . . Ramming . | . . . Kinetic 69 | . 69 . Thermal . | . . . Explosive 2101 | . 1009 1092 Electromagnetic . | . . . Impact . | . . . Slashing . | . . . Piercing . | . . . Highest Corruption . | . . . Average Corruption . | . . . Corruption Purged . | . . . Corruption Blocked . | . . . Overload Shots . | . . . Overflow Damage 13 | . 13 . Projectiles . | . . . Explosions 13 | . 13 . Melee . | . . . Knockbacks . | . . . Impact . | . . . Kinetic . | . . . Secondary . | . . . Self-Inflicted Damage 78 | . 22 56 Shots 5 | . 2 3 Rammed . | . . . Targets Rammed . | . . . Kicked . | . . . Crushed . | . . . Highest Temperature 18 | . 18 . Average Temperature 6 | . 6 . Received Heat Transfer 294 | . 144 150 Siege Activations . | . . . Robots Corrupted . | . . . Combat Hostiles . | . . . Parts Fried . | . . . Impact Corruptions . | . . . Robots Melted . | . . . Combat Hostiles . | . . . Parts Melted . | . . . Heat Transferred . | . . . Parts Sabotaged . | . . . Parts Stolen . | . . . Parts Stripped . | . . . Power Chain Reactions . | . . . Alert | -11 -10 -10 ------- Run | Yrd Mat Sub Peak Influence 344 | . 344 . Initial . | . . . Average 156 | . 162 . Maximum Alert Level 1 | . 1 . Low Security (%) 76 | 100 76 . Level 1 23 | . 23 . Level 2 . | . . . Level 3 . | . . . Level 4 . | . . . Level 5 . | . . . High Security . | . . . Max Security . | . . . Squads Dispatched 3 | . 3 . Investigation 2 | . 2 . Extermination . | . . . Reinforcement 1 | . 1 . Assault . | . . . Garrison . | . . . Intercept . | . . . Searches Triggered . | . . . Construction Impeded . | . . . Haulers Reinforced . | . . . Active Scanning Responses . | . . . Cargo Convoy Interrupts . | . . . Stealth | -11 -10 -10 --------- Run | Yrd Mat Sub Distress Signals 1 | . 1 . Communications Jammed . | . . . Distress Signals . | . . . Times Spotted 35 | . 16 19 Peak Tracking Total 5 | . 3 5 Tactical Retreats 4 | . 2 2 Traps | -11 -10 -10 ------- Run | Yrd Mat Sub Traps Triggered 2 | . 2 . Indirectly . | . . . Trap Hack Attempts . | . . . Triggered . | . . . Disarmed . | . . . Reprogrammed 1 | . 1 . Reused . | . . . Traps Extracted . | . . . Installed . | . . . Triggered . | . . . Most Traps Carried 1 | . . 1 Machines | -11 -10 -10 ---------- Run | Yrd Mat Sub Machines Disabled 2 | . 2 . Max in Single Turn 1 | . 1 . Machines Repaired . | . . . Machines Dismantled . | . . . Machines Sabotaged . | . . . Overloaded Fab Kills . | . . . Hacking | -11 -10 -10 --------- Run | Yrd Mat Sub Machines Accessed 8 | . 8 . Terminals 6 | . 6 . Fabricators . | . . . Repair Stations 1 | . 1 . Recycling Units 1 | . 1 . Scanalyzers . | . . . Garrison Access . | . . . Total Hacks 23 | . 23 . Successful 9 | . 9 . Failed 14 | . 14 . Catastrophic 2 | . 2 . Database Lockouts . | . . . Manual 1 | . 1 . Terminals 19 | . 19 . Fabricators . | . . . Repair Stations 2 | . 2 . Recycling Units 2 | . 2 . Scanalyzers . | . . . Garrison Access . | . . . Terminal Hacks 6 | . 6 . Prototype ID Bank 2 | . 2 . Level Access Points 1 | . 1 . Reprogram Traps 1 | . 1 . Hauler Manifests 1 | . 1 . Registered Components 1 | . 1 . Fabricator Hacks . | . . . Repair Station Hacks 2 | . 2 . Scan Component 1 | . 1 . Repair 1 | . 1 . Recycling Unit Hacks 1 | . 1 . Retrieve Components 1 | . 1 . Scanalyzer . | . . . Garrison Access Hacks . | . . . Unauthorized Hacks . | . . . Terminals . | . . . Fabricators . | . . . Repair Stations . | . . . Recycling Units . | . . . Scanalyzers . | . . . Garrison Access . | . . . Data Cores Recovered . | . . . Used . | . . . Hacking Detections 6 | . 6 . Full Trace Events 2 | . 2 . Feedback Events . | . . . Feedback Blocked . | . . . Robot Schematics Acquired . | . . . Robots Built . | . . . Authchips . | . . . Time . | . . . Total Robot Build Rating . | . . . Part Schematics Acquired . | . . . Parts Built . | . . . Authchips . | . . . Time . | . . . Total Part Build Rating . | . . . Parts Repaired 1 | . 1 . Time 26 | . 26 . Parts Recycled . | . . . Recycled Matter . | . . . Retrieved Matter . | . . . Retrieved Components 6 | . 6 . Parts Scanalyzed . | . . . Part Schematics Acquired . | . . . Parts Damaged . | . . . Bothacking | -11 -10 -10 ------------ Run | Yrd Mat Sub Used RIF Installer . | . . . Robots Hacked 2 | . 2 . Non-combat 2 | . 2 . Combat . | . . . Robot Hacks Applied 3 | . 3 . parse_system 1 | . 1 . no_distress 2 | . 2 . Relay Couplers Released . | . . . Fabnet Peak Effective % . | . . . Robots Rewired . | . . . Allies Hacked . | . . . Hacks Repelled . | . . . Allies | -11 -10 -10 -------- Run | Yrd Mat Sub Total Allies . | . . . Largest Group . | . . . Highest-Rated Group . | . . . Highest-Rated Ally . | . . . Total Orders . | . . . Ally Attacks . | . . . Total Damage . | . . . Kills . | . . . Allies Corrupted . | . . . Allies Melted . | . . . Intel | -11 -10 -10 ------- Run | Yrd Mat Sub Robot Analysis Total . | . . . Derelict Logs Recovered 1 | . . 1 Drone Launches . | . . . Drone Recoveries . | . . . Exploration | -11 -10 -10 ------------- Run | Yrd Mat Sub Turns Passed 2989 | 69 1870 1050 Spaces Moved 1637 | 42 1002 593 Core 12 | 12 . . Treads 1625 | 30 1002 593 Legs . | . . . Wheels . | . . . Hover . | . . . Flight . | . . . Fastest Speed 50 | 50 160 160 Average Speed 161 | 128 160 165 Slowest Speed 240 | 160 160 240 Overloaded Moves . | . . . Propulsion Burnouts . | . . . Robots Hopped . | . . . Cave-ins Triggered . | . . . Exploration Rate (%) 43 | 5 95 29 Regions Visited 2 Branch Regions 1 Pre-discovered Areas 2 | . . 2 Known Exits Taken . | . . . Unknown Exits Taken 2 | 1 1 . Scrap Searched 3 | . . 3 Spaces Dug 16 | . 13 3 Terrain Destroyed 198 | . 117 81 Melee . | . . . Projectile . | . . . AOE 198 | . 117 81 Terrain Rammed . | . . . Walls Destroyed . | . . . Machines Disabled . | . . . Actions | -11 -10 -10 --------- Run | Yrd Mat Sub Total 1933 | 57 1234 642 Wait 173 | . 156 17 Move 1635 | 41 1001 593 Hop . | . . . Pick Up 36 | 10 21 5 Fast Attach . | . . . Attach 14 | 6 5 3 Detach . | . . . Swap 8 | . 7 1 Drop 13 | . 10 3 Fire 50 | . 30 20 Melee 4 | . 4 . Ram . | . . . Kick . | . . . Crush . | . . . Escape Stasis . | . . . Rewire . | . . . Trap . | . . . Miscellaneous . | . . . Route ------- -11/Scrapyard -10/Materials (discovered 5 exits: *Mat x3 / [*Min] / [*Sub]) -10/Subcaves (discovered 3 exits: [*Mat x2] / [*Rec]) History --------- Turn | Location | Event 43 | -11/Scrapyard | Discovered new exit (range 15) 70 | -11/Scrapyard | Entered Materials 305 | -10/Materials | Build established: Mutant 462 | -10/Materials | Identified exit to Materials 749 | -10/Materials | Repaired Grenade Launcher 1343 | -10/Materials | Discovered new exit (range 8) 1930 | -10/Materials | Discovered new exit (range 6) 1940 | -10/Materials | Entered Subcaves 1957 | -10/Subcaves | Shifting Twisted Machinery released Battle Cannon 1957 | -10/Subcaves | Shifting Twisted Machinery released Battle Cannon 2074 | -10/Subcaves | Learned location of Zion (-6) 2074 | -10/Subcaves | Met a Zionite searching for "candidates" 2074 | -10/Subcaves | Discovered new exit (range 4) 2307 | -10/Subcaves | Shifting Twisted Machinery released Sub. Monowheel 2310 | -10/Subcaves | Shifting Twisted Machinery released Piercing Trap 2574 | -10/Subcaves | Discovered new exit (range 11) 2715 | -10/Subcaves | Core integrity fell below 50% 2847 | -10/Subcaves | A Subdweller sparked back to life 2847 | -10/Subcaves | A Subdweller sparked back to life 2877 | -10/Subcaves | Found Prototype Power Core 2878 | -10/Subcaves | Identified Meta Core 2879 | -10/Subcaves | Attached Meta Core, gained temporary slots: Propulsion, Utility, Weapon 2940 | -10/Subcaves | Core integrity fell below 20% 2978 | -10/Subcaves | Discovered new exit (range 16) 2990 | -10/Subcaves | Destroyed by Autobeam Turret with Autobeam Last Messages --------------- 02859_ VF-V8Q(R) destroyed. 02860_ 5W-SUN(R) destroyed. 02869_ Acquired 43 matter. 02874_ Acquired 21 matter. 02877_ Acquired Prototype Power Core. 02878_ Identified Meta Core. 02879_ Core temporarily expanded with Propulsion slot. 02879_ Core temporarily expanded with Utility slot. 02879_ Core temporarily expanded with Weapon slot. 02888_ Acquired Sub. Optics. 02893_ Dropped Lgt. Nuclear Core. 02896_ Acquired 13 matter. 02924_ Subatomizers dissect the Sub. Monowheel. 02949_ S-10 Pest destroyed. 02951_ Lgt. Assault Rifle fries itself beyond repair. 02978_ EXIT=FOUND Map ----- +----------------------------------------------------+ | ?????????????????????????????????????????????????# | | ?????????????????????????????????????#####??????## | | ?????????????????????????????????????# #??????# | | ????????????????????????????????????? ??????# | | ????????????????????????????????????? ??????# | | ???????????????????????????????????? "" ???????# | | ???????????????????????????#####??"??"" ???????# | | ??????????????????????????? ##"???" #???##### | | ???????????????????????????? # #??#"##### | | ????????????????????????????? % "### ## ## #& | | ???????????????????????????? """ # ## & | | ????####????????????????#?? % """ & | | ????# ???????????????## ?#?## "" "" | | ???## ?????????????### # ## """"" | | ???# ????????????## """"""# # # | | ??## ????????????? % """" ### ## | | ??? ???###??????? ??# " ## ####? | | ????# #### #???????# ???## #####???? | | ???## #####?### #????###### #??????? | | ##?# # ### #??????#### "#?????? | | ## #????? """# ""#????? | | ## # # ###??? "## =""#???? | | ## #?# ### "#### ""#??? | | ### " ### t""### ""##?## | | # ## <## ["### """" | | < % @ t""#?## ## """" | | # # #### "#?## ##" """" | | # & "## ## ##?????????#?# #?#"""" | | ## ## #####????????????## ###"""" | | ?# * ### ##????????????###?## " | | ## == ## #???????????## ##?# """ | | # ### #####??????????## #?# | | # = ###?# ##??????????????# #### | | ## & #??####????????????###? #### | | ?## # #??????????????????# #### #?# | | ??# # #??????????????????#&"# " #?## | | ??# # ##?????####?####??## [ ##?## | | ??# ## #?????# ### ####] ![ #??### # | | ??##?## #??#### ## ## * ! ##???# ## | | ????## #?## ## # # ##### #? | | ??### #?# ## ## ## | | ??# #### ### # ## | | ?## ### ##?# #### | | ?# ## #??# #?## ### | | ?#### #### ##?# #### ## ##?# | | ????# ##??####??### ## ### ####??# | | ????# ### ###???????????#######?########?????## | | ????#####?####???????????????????????????????????? | | ?????????????????????????????????????????????????? | | ?????????????????????????????????????????????????? | +----------------------------------------------------+ Best States ------------- Heat Dissipation 25 Energy Generation 17 Energy Capacity 180 Matter Stores 295 Matter Capacity 300 Sight Range 16 Robot Scan Range 14 Terrain Scan Density 10 Evasion (%) 40 Recoil Reduction 2 Item Schematics ----------------- None Robot Schematics ------------------ None Fabricated ------------ Nothing Alien Tech Used ----------------- None Achievements -------------- None Challenges ------------ None Game ------ Seed MicroGodKit Manual? 0 Play Time 00:38:15 Cumulative 23.6 hours Start 2024.04.16 @ 19:10:56 End 2024.04.16 @ 21:27:25 Sessions 1 Manual Loads 0 Difficulty Rogue Special Mode None Game No. 47 Rogue 47 Adventurer 0 Explorer 0 Win Type - Total 0 Types 0/0/0/0/0/0/0/0/0 Lore% 18 Gallery% 23 Achievement% 19 Wizard Run 0 Options --------- Layout 1 ASCII 0 Keyboard 1 Movement Numpad Keybinds 0 Fullscreen 1 Font 24/Smallcaps Map View 50x35 Zoom Use 0% Tactical HUD 1 Map Filters NONE Filters NONE Steam 1 RUN: 172325ca-8c89-4804-8a66-cbeb39d48273